bitfinex/quotes_BTCUSD_20260308
["timestamp","ask_amount","ask_price","bid_price","bid_amount"]
[1773001006214,0.07456676,67054.0,67052.0,0.00074]
[1773001008077,0.07556676,67054.0,67050.0,0.0152]
[1773001008280,0.00554,67079.0,67050.0,0.14459719]
[1773001008281,0.07455869,67062.0,67050.0,0.14459719]
[1773001008507,0.07455869,67062.0,67051.0,0.05630648]
[1773001009986,0.07455787,67063.0,67051.0,0.05630648]
[1773001009987,0.07455787,67063.0,67052.0,0.07456899]
[1773001010187,0.07455787,67063.0,67052.0,0.12939547]
[1773001010592,0.07455787,67063.0,67052.0,0.22774607]
[1773001010796,0.07455787,67064.0,67053.0,0.05482648]
[1773001010948,0.00148,67063.0,67053.0,0.05482648]
[1773001012193,0.07455787,67062.0,67054.0,0.07456676]
[1773001012392,0.07455787,67062.0,67053.0,0.05482648]
[1773001012628,0.07455787,67062.0,67052.0,0.07456845]
[1773001014016,0.07455787,67062.0,67052.0,0.07604845]
[1773001015333,0.07451787,67062.0,67052.0,0.07604845]
[1773001015946,0.07602619,67073.0,67055.0,0.22774607]
[1773001016154,0.07454619,67073.0,67058.0,0.05482648]
[1773001016322,0.07454619,67073.0,67060.0,0.05482648]
[1773001018167,0.07454564,67075.0,67059.0,0.0760412]
[1773001018168,0.07454358,67075.0,67063.0,0.22774607]
[1773001018362,0.07454207,67077.0,67066.0,0.05482648]
[1773001019291,0.00554,67079.0,67067.0,0.22774607]
[1773001019497,0.07453613,67082.0,67066.0,0.22774607]
[1773001019683,0.07453613,67082.0,67065.0,0.07455453]
[1773001019684,0.07475698,67081.0,67069.0,0.05482648]
[1773001019979,0.07475698,67081.0,67070.0,0.00148]
[1773001020190,0.07475698,67081.0,67071.0,0.05482648]
[1773001020548,0.07475698,67081.0,67072.0,0.07454675]
[1773001020729,0.07475698,67081.0,67072.0,0.00148]
[1773001022037,0.07475771,67081.0,67072.0,0.05630648]
[1773001022244,0.07475771,67081.0,67072.0,0.00148]
[1773001022598,0.07475771,67081.0,67073.0,0.07454564]
[1773001023474,0.07475755,67081.0,67073.0,0.07454564]
[1773001023677,0.07475755,67081.0,67074.0,0.05482648]
[1773001025370,0.00022001,67081.0,67074.0,0.05482648]
[1773001025613,0.07475287,67085.0,67076.0,0.03982235]
[1773001025775,0.00022001,67085.0,67076.0,0.03348382]
[1773001026185,0.00022001,67081.0,67076.0,0.03348382]
[1773001026809,0.07502742,67092.0,67077.0,0.24812286]
[1773001027011,0.07650742,67092.0,67080.0,0.05473084]
[1773001027625,0.07502779,67092.0,67082.0,0.05473084]
[1773001028298,0.07650779,67092.0,67082.0,0.05473084]
[1773001028510,0.07502779,67092.0,67082.0,0.05473084]
[1773001028936,0.00022001,67095.0,67082.0,0.05473084]
[1773001029141,0.07451286,67103.0,67085.0,0.24664286]
[1773001029336,0.13521166,67103.0,67086.0,0.06076922]
[1773001029570,0.13521166,67103.0,67089.0,0.07452786]
[1773001029777,0.13521166,67103.0,67089.0,0.13529708]
[1773001030389,0.13531832,67103.0,67089.0,0.13529708]
[1773001030594,0.07461952,67103.0,67089.0,0.07452786]
[1773001030720,0.0606988,67101.0,67087.0,0.07600786]
[1773001031441,0.0606988,67101.0,67088.0,0.00148]
[1773001032280,0.0606988,67101.0,67086.0,0.07453109]
[1773001032281,0.07451564,67100.0,67086.0,0.07453109]
[1773001032486,0.07451564,67100.0,67087.0,0.00148]
[1773001032918,0.07451564,67100.0,67088.0,0.00148]
[1773001033315,0.07451564,67100.0,67086.0,0.07453109]
[1773001033519,0.07451564,67100.0,67089.0,0.00148]
[1773001033920,0.3122827,67097.0,67084.0,0.00148]
[1773001034088,0.0606988,67096.0,67084.0,0.00148]
[1773001034286,0.0606988,67096.0,67082.0,0.0745346]
[1773001034287,0.0745212,67095.0,67082.0,0.0745346]
[1773001034490,0.0745212,67095.0,67083.0,0.00148]
[1773001034694,0.0745212,67095.0,67084.0,0.00148]
[1773001036862,0.0745212,67095.0,67085.0,0.0745323]
[1773001038130,0.0745212,67095.0,67079.0,0.32118146]
[1773001038131,0.2515839,67090.0,67072.0,0.07469668]
[1773001038297,0.0606988,67087.0,67072.0,0.07469668]
[1773001038649,0.0567863,67085.0,67072.0,0.00015]
[1773001038893,0.07453342,67084.0,67072.0,0.00015]
[1773001039222,0.13131972,67084.0,67072.0,0.00015]
[1773001039699,0.0567863,67083.0,67072.0,0.00015]
[1773001041708,0.07453564,67082.0,67072.0,0.07489618]
[1773001042671,0.07452804,67089.0,67076.0,0.05917933]
[1773001042882,0.00148,67086.0,67076.0,0.05917933]
[1773001043655,0.07452804,67089.0,67076.0,0.05917933]
[1773001043856,0.00148,67089.0,67078.0,0.25086673]
[1773001044099,0.00148,67089.0,67079.0,0.05917933]
[1773001044487,0.07452786,67090.0,67079.0,0.05917933]
[1773001045265,0.07622787,67091.0,67080.0,0.00148]
[1773001045470,0.07474609,67091.0,67081.0,0.05917933]
[1773001045678,0.07474609,67091.0,67081.0,0.25086673]
[1773001045875,0.07474609,67091.0,67083.0,0.13371386]
[1773001046606,0.07451084,67105.0,67085.0,0.05917933]
[1773001046827,0.07451084,67105.0,67088.0,0.25086673]
[1773001046828,0.00011925,67105.0,67088.0,0.25086673]
[1773001047050,0.00011925,67105.0,67092.0,0.25086673]
[1773001047264,0.00011925,67105.0,67094.0,0.05917933]
[1773001047431,0.07497796,67107.0,67096.0,0.05917933]
[1773001047733,0.07472704,67108.0,67098.0,0.05917933]
[1773001047949,0.07472704,67108.0,67100.0,0.05910032]
[1773001051123,0.0745002,67114.0,67103.0,0.05917933]
[1773001051323,0.0745002,67114.0,67105.0,0.05917933]
[1773001051527,0.00022001,67112.0,67105.0,0.05917933]
[1773001053080,0.07472287,67112.0,67106.0,0.07450898]
[1773001053292,0.00022001,67113.0,67106.0,0.07450898]
[1773001053498,0.00022001,67113.0,67106.0,0.13368831]
[1773001054527,0.07472134,67113.0,67106.0,0.13368831]
[1773001055609,0.07472151,67113.0,67106.0,0.07450898]
[1773001055777,0.07472151,67113.0,67105.0,0.07450898]
[1773001056033,0.07471474,67119.0,67106.0,0.05917933]
[1773001057855,0.00022001,67119.0,67109.0,0.05917933]
[1773001058205,0.07471475,67119.0,67110.0,0.05917933]
[1773001058415,0.07471475,67119.0,67110.0,0.05901217]
[1773001060198,0.07471498,67119.0,67112.0,0.05709423]
[1773001061122,0.00022001,67119.0,67112.0,0.05709423]
[1773001061667,0.07471475,67119.0,67112.0,0.05709423]
[1773001061908,0.07471475,67119.0,67111.0,0.07450343]
[1773001061909,0.07471475,67119.0,67109.0,0.07598544]
[1773001062109,0.06016046,67118.0,67109.0,0.00148]
[1773001062329,0.06016046,67116.0,67103.0,0.00148]
[1773001062492,0.2621482,67113.0,67103.0,0.00148]
[1773001062687,0.06016046,67111.0,67101.0,0.07451419]
[1773001062991,0.06016046,67111.0,67101.0,0.00148]
[1773001063206,0.06016046,67111.0,67099.0,0.07451619]
[1773001063460,0.06016046,67111.0,67100.0,0.07599515]
[1773001064668,0.07450293,67112.0,67100.0,0.13308938]
[1773001065339,0.07450293,67112.0,67100.0,0.07599515]
[1773001065646,0.07450293,67112.0,67100.0,0.13308938]
[1773001066224,0.07450018,67114.0,67100.0,0.07599515]
[1773001066423,0.07449981,67115.0,67102.0,0.07451342]
[1773001066624,0.06016046,67114.0,67102.0,0.07451342]
[1773001070184,0.07450121,67113.0,67102.0,0.05997342]
[1773001070389,0.07472122,67113.0,67102.0,0.05997342]
[1773001070590,0.06016046,67112.0,67102.0,0.05997342]
[1773001070983,0.06016046,67112.0,67101.0,0.07451342]
[1773001071343,0.06016046,67112.0,67102.0,0.00148]
[1773001071526,0.06016046,67112.0,67101.0,0.07451342]
[1773001071691,0.06016046,67112.0,67102.0,0.00148]
[1773001072084,0.07450343,67111.0,67102.0,0.07599331]
[1773001072479,0.06016046,67110.0,67102.0,0.07451331]
[1773001072692,0.06016046,67110.0,67102.0,0.07599331]
[1773001073001,2.22e-06,67113.0,67102.0,0.07451331]
[1773001073194,0.07450346,67113.0,67104.0,0.05709423]
[1773001073611,0.07450362,67113.0,67104.0,0.05709423]
[1773001073872,2.22e-06,67114.0,67105.0,0.24398968]
[1773001074023,0.07448902,67124.0,67108.0,0.24398968]
[1773001074221,0.07448902,67124.0,67112.0,0.05709423]
[1773001074423,0.07448902,67124.0,67113.0,0.00148]
[1773001074602,0.07448902,67124.0,67114.0,0.00148]
[1773001075246,0.2621482,67122.0,67114.0,0.00148]
[1773001075406,0.06016046,67119.0,67111.0,0.00148]
[1773001075826,0.07448902,67124.0,67111.0,0.00148]
[1773001076226,0.07448902,67124.0,67112.0,0.07450232]
[1773001077482,0.13464948,67124.0,67112.0,0.07450232]
[1773001079127,0.07448902,67124.0,67112.0,0.07450232]
[1773001079276,0.06016046,67123.0,67112.0,0.07450232]
[1773001079809,0.07448902,67124.0,67112.0,0.07450232]
[1773001079810,0.0747093,67124.0,67112.0,0.07450232]
[1773001080394,0.06016046,67123.0,67112.0,0.07598232]
[1773001080903,0.0747093,67124.0,67112.0,0.13307655]
[1773001081291,0.00022001,67126.0,67114.0,0.24398968]
[1773001081517,0.00022001,67126.0,67118.0,0.24398968]
[1773001081689,0.00022001,67126.0,67119.0,0.05857423]
[1773001081878,0.2229544,67127.0,67119.0,0.05857423]
[1773001082284,0.2229544,67127.0,67119.0,0.00148]
[1773001082707,0.2230736,67127.0,67119.0,0.00148]
[1773001082921,0.14858792,67127.0,67119.0,0.00148]
[1773001083098,0.0748812,67127.0,67120.0,0.07449344]
[1773001083508,1.0744856,67128.0,67121.0,0.05709423]
[1773001085432,0.08024012,67133.0,67121.0,0.05709423]
[1773001085433,0.11803798,67148.0,67122.0,0.05866318]
[1773001085644,0.00039726,67148.0,67125.0,0.25118378]
[1773001085859,0.00039726,67148.0,67128.0,0.05866318]
[1773001086065,0.07605548,67155.0,67129.0,0.05866318]
[1773001086261,0.07617461,67155.0,67132.0,0.25118378]
[1773001086457,0.07617461,67155.0,67135.0,0.05866318]
[1773001086664,0.07617461,67155.0,67138.0,0.25118378]
[1773001086861,0.00023913,67155.0,67140.0,0.05866318]
[1773001087063,1e-08,67156.0,67143.0,0.25118378]
[1773001087248,1e-08,67156.0,67147.0,0.05866318]
[1773001087582,0.06068879,67155.0,67146.0,0.00148]
[1773001087794,0.06068879,67155.0,67145.0,0.07446532]
[1773001088519,1e-08,67156.0,67145.0,0.07446532]
[1773001088863,0.05944392,67156.0,67145.0,0.07446532]
[1773001089262,0.05944391,67154.0,67144.0,0.0744661]
[1773001089784,0.07445461,67155.0,67144.0,0.1351678]
[1773001090180,0.00148,67159.0,67145.0,0.0607017]
[1773001090498,0.00148,67159.0,67146.0,0.0607017]
[1773001090696,0.07593031,67159.0,67146.0,0.0607017]
[1773001090895,0.00148,67159.0,67146.0,0.0607017]
[1773001091098,0.00577,67160.0,67146.0,0.0607017]
[1773001091301,0.00577,67160.0,67149.0,0.07446127]
[1773001091510,0.00577,67160.0,67150.0,0.06053459]
[1773001092164,0.0802195,67160.0,67149.0,0.07594127]
[1773001092324,0.13966341,67160.0,67149.0,0.07594127]
[1773001092523,0.0802195,67160.0,67143.0,0.07458639]
[1773001092731,0.05944391,67156.0,67144.0,0.00148]
[1773001092909,0.26170908,67153.0,67143.0,0.07458618]
[1773001093110,0.05944391,67152.0,67143.0,0.07458618]
[1773001093286,0.07445572,67154.0,67143.0,0.07458618]
[1773001093487,0.07593572,67155.0,67144.0,0.0607017]
[1773001093692,0.00148,67155.0,67145.0,0.0607017]
[1773001093887,0.07593489,67155.0,67145.0,0.0607017]
[1773001094090,0.05944391,67154.0,67143.0,0.00011913]
[1773001094899,0.05944391,67154.0,67142.0,0.07441989]
[1773001095155,0.05956295,67154.0,67142.0,0.07441989]
[1773001095323,0.05956295,67154.0,67142.0,0.07425275]
[1773001095505,0.07445683,67153.0,67142.0,0.07425275]
[1773001097471,0.00011904,67154.0,67143.0,0.0607017]
[1773001097829,0.00011904,67154.0,67144.0,0.07446681]
[1773001098171,0.00011904,67154.0,67145.0,0.0607017]
[1773001100156,0.00011904,67154.0,67146.0,0.07446459]
[1773001101640,0.00011904,67154.0,67145.0,0.07446459]
[1773001101846,0.00011904,67154.0,67146.0,0.07446459]
[1773001102046,0.00033905,67154.0,67146.0,0.0741303]
[1773001102242,0.07445683,67153.0,67146.0,0.0741303]
[1773001103447,0.07445683,67153.0,67144.0,0.00148]
[1773001104137,0.00033905,67154.0,67144.0,0.00148]
[1773001104337,0.00033905,67154.0,67142.0,0.07446903]
[1773001104583,0.00033905,67154.0,67143.0,0.00148]
[1773001105049,0.07445683,67153.0,67143.0,0.00148]
[1773001105250,0.05944391,67152.0,67142.0,0.07446903]
[1773001105444,0.07446016,67150.0,67142.0,0.07431903]
[1773001105643,0.07445683,67153.0,67142.0,0.07431903]
[1773001106051,0.07445683,67153.0,67142.0,0.07579903]
[1773001106299,0.07445683,67153.0,67142.0,0.13650073]
[1773001107628,0.05916023,67152.0,67142.0,0.07579903]
[1773001107807,0.26170908,67150.0,67142.0,0.07579903]
[1773001108124,0.05944391,67151.0,67142.0,0.07579903]
[1773001108330,0.07445683,67153.0,67142.0,0.07579903]
[1773001108506,0.00148,67152.0,67142.0,0.07431903]
[1773001109486,0.00148,67152.0,67142.0,0.07415187]
[1773001109687,0.07593863,67152.0,67142.0,0.07415187]
[1773001109931,0.07593863,67152.0,67142.0,0.07435187]
[1773001116172,0.07593863,67152.0,67142.0,0.07418471]
[1773001117911,0.24529025,67151.0,67140.0,0.07595095]
[1773001118088,0.05944391,67150.0,67140.0,0.07595095]
[1773001118314,0.05944391,67150.0,67140.0,0.07447095]
[1773001118520,0.07446127,67149.0,67140.0,0.00148]
[1773001118795,0.07446127,67149.0,67138.0,0.0607017]
[1773001118998,0.07446127,67149.0,67140.0,0.00148]
[1773001119847,0.07446127,67149.0,67136.0,0.25213172]
[1773001119848,0.05906239,67148.0,67136.0,0.07447569]
[1773001119985,0.24529025,67146.0,67135.0,0.07467637]
[1773001120192,0.24529025,67142.0,67132.0,0.07447986]
[1773001120387,0.07447014,67141.0,67132.0,0.07447986]
[1773001120592,0.07,67140.0,67132.0,0.07447986]
[1773001122668,0.07447236,67139.0,67131.0,0.07448049]
[1773001125673,0.07,67140.0,67132.0,0.05911337]
[1773001126041,0.07446016,67151.0,67133.0,0.26195907]
[1773001126386,0.07446016,67151.0,67137.0,0.26195907]
[1773001126591,0.00148,67150.0,67141.0,0.07447014]
[1773001126750,0.00148,67150.0,67142.0,0.05911337]
[1773001126952,0.07446016,67151.0,67142.0,0.05911337]
[1773001127906,0.07479478,67154.0,67142.0,0.05911337]
[1773001127907,0.00033905,67154.0,67144.0,0.05911337]
[1773001128066,0.07445481,67155.0,67146.0,0.05911337]
[1773001128407,0.07445481,67155.0,67146.0,0.05923241]
[1773001128844,0.00015,67156.0,67147.0,0.1334097]
[1773001132958,0.07443078,67177.0,67150.0,0.26195907]
[1773001133163,0.0002748,67178.0,67154.0,0.26195907]
[1773001133387,0.00104,67180.0,67158.0,0.26195907]
[1773001133599,0.00023,67184.0,67160.0,0.23731591]
[1773001133793,0.00023,67184.0,67164.0,0.05911337]
[1773001133794,1e-08,67184.0,67164.0,0.05911337]
[1773001134008,0.00555,67187.0,67176.0,0.05911337]
[1773001134203,0.00555,67187.0,67177.0,0.00148]
[1773001134899,0.00555,67187.0,67178.0,0.07442912]
[1773001135302,0.00566911,67187.0,67178.0,0.07442912]
[1773001135484,0.00022001,67184.0,67178.0,0.07442912]
[1773001136077,0.00022001,67184.0,67178.0,0.07409497]
[1773001136276,0.00022001,67184.0,67177.0,0.07590912]
[1773001136719,0.18427,67214.0,67177.0,0.07442912]
[1773001136949,0.00555,67214.0,67185.0,0.05911337]
[1773001137119,0.00555,67214.0,67184.0,0.00023]
[1773001137120,0.0001044,67213.0,67188.0,0.26195907]
[1773001137316,0.07438181,67221.0,67189.0,0.00148]
[1773001137499,0.06054239,67220.0,67192.0,0.26195907]
[1773001137782,0.06054239,67220.0,67197.0,0.05911337]
[1773001137783,0.24529025,67218.0,67197.0,0.05911337]
[1773001137981,0.05906239,67217.0,67199.0,0.05911337]
[1773001138186,0.05906239,67217.0,67200.0,0.06059337]
[1773001138456,0.00148,67216.0,67201.0,0.05911337]
[1773001138586,0.00148,67216.0,67204.0,0.26195907]
[1773001138785,0.00148,67218.0,67207.0,0.07439701]
[1773001139095,0.00039712,67218.0,67209.0,0.05911337]
[1773001140316,0.00039712,67218.0,67209.0,0.05896337]
[1773001140519,0.07437638,67226.0,67211.0,0.05911337]
[1773001140719,0.05906239,67225.0,67211.0,0.05911337]
[1773001141107,0.13344058,67224.0,67212.0,0.07439147]
[1773001141559,0.00011904,67226.0,67214.0,0.26195907]
[1773001141870,0.00011904,67226.0,67213.0,0.00148]
[1773001141871,0.07449529,67226.0,67213.0,0.00148]
[1773001142007,0.07449529,67226.0,67213.0,0.32255244]
[1773001142192,0.07449529,67226.0,67214.0,0.05911337]
[1773001142396,0.07449529,67226.0,67214.0,0.26195907]
[1773001142594,0.07449529,67226.0,67215.0,0.0589463]
[1773001142896,0.06949529,67226.0,67215.0,0.0589463]
[1773001143347,0.00022001,67224.0,67216.0,0.07438705]
[1773001143547,0.00022001,67224.0,67216.0,0.07450609]
[1773001143791,0.00022001,67224.0,67217.0,0.05911337]
[1773001144633,0.0017853,67229.0,67217.0,0.05911337]
[1773001145472,0.06070618,67227.0,67216.0,0.07450609]
[1773001146077,0.06070618,67227.0,67216.0,0.07250609]
[1773001147197,0.06070618,67225.0,67214.0,0.00556]
[1773001147373,0.06070618,67224.0,67214.0,0.00556]
[1773001147565,0.13508548,67223.0,67214.0,0.00556]
[1773001147893,0.13656548,67223.0,67214.0,0.00556]
[1773001148706,0.13656548,67223.0,67192.0,0.07441286]
[1773001148707,0.0758593,67223.0,67192.0,0.07441286]
[1773001149019,0.0758593,67223.0,67193.0,0.07441251]
[1773001149020,0.24765233,67217.0,67193.0,0.07441251]
[1773001149290,0.06101154,67214.0,67194.0,0.00148]
[1773001149490,0.06101154,67209.0,67195.0,0.07441029]
[1773001149694,0.06249154,67208.0,67196.0,0.00148]
[1773001149999,0.06101154,67204.0,67192.0,0.07441286]
[1773001150155,0.06101154,67204.0,67190.0,0.07589503]
[1773001150355,0.06101154,67204.0,67189.0,0.07441612]
[1773001150356,0.24765233,67203.0,67189.0,0.00148]
[1773001150545,0.24765233,67203.0,67188.0,0.07441745]
[1773001150546,0.07439369,67210.0,67191.0,0.24791301]
[1773001150744,0.00148,67209.0,67194.0,0.06398773]
[1773001150968,0.00148,67209.0,67195.0,0.06398773]
[1773001151187,0.06261042,67209.0,67195.0,0.06398773]
[1773001151394,0.06101154,67207.0,67192.0,0.00148]
[1773001151596,0.06101154,67204.0,67193.0,0.07441251]
[1773001151814,0.06101154,67204.0,67198.0,0.0002]
[1773001152020,0.06101154,67204.0,67198.0,3.294e-05]
[1773001153531,0.06101154,67204.0,67192.0,0.00148]
[1773001153532,0.24765233,67202.0,67192.0,0.00148]
[1773001153696,0.06101154,67200.0,67191.0,0.0002]
[1773001154277,0.06101154,67200.0,67187.0,0.00556]
[1773001154472,0.06101154,67198.0,67187.0,0.00556]
[1773001154673,0.06249154,67197.0,67187.0,0.00556]
[1773001156012,0.07440919,67196.0,67187.0,0.00539289]
[1773001156778,0.07451422,67209.0,67189.0,0.24791301]
[1773001156920,0.0758763,67208.0,67192.0,0.06398773]
[1773001157267,0.00148,67207.0,67195.0,0.06398773]
[1773001157698,0.0743963,67208.0,67195.0,0.06398773]
[1773001157898,0.00148,67207.0,67195.0,0.06398773]
[1773001158143,0.07439811,67206.0,67194.0,0.07441088]
[1773001158360,0.07439811,67206.0,67195.0,0.24791301]
[1773001158565,0.07439811,67206.0,67197.0,0.24791301]
[1773001158778,0.07439811,67206.0,67198.0,0.06398773]
[1773001159333,0.07439811,67206.0,67196.0,0.00148]
[1773001159648,0.07439811,67206.0,67196.0,0.00133]
[1773001160061,0.07439811,67206.0,67205.0,0.5]
[1773001160447,0.07439811,67207.0,67205.0,0.5]
[1773001161023,0.07439811,67207.0,67197.0,0.1383958]
[1773001161670,0.07439811,67207.0,67197.0,0.07440807]
[1773001163137,0.07539811,67207.0,67197.0,0.07440807]
[1773001163336,0.07439811,67207.0,67197.0,0.07440807]
[1773001163747,0.07439811,67207.0,67185.0,0.13840831]
[1773001163748,0.06101154,67205.0,67185.0,0.13840831]
[1773001163953,0.06101154,67200.0,67187.0,0.08149197]
[1773001164439,0.00148,67202.0,67187.0,0.08149197]
[1773001164440,0.06101154,67205.0,67188.0,0.06398773]
[1773001164650,0.00148,67201.0,67188.0,0.06546773]
[1773001165260,0.07440476,67200.0,67189.0,0.07441694]
[1773001165687,0.07440476,67200.0,67189.0,0.13840467]
[1773001166299,0.07440476,67200.0,67189.0,0.06398773]
[1773001166503,0.07440476,67200.0,67188.0,0.07589694]
[1773001166504,0.06101154,67197.0,67187.0,0.08001188]
[1773001166701,0.07440476,67200.0,67187.0,0.08001188]
[1773001167590,0.07440476,67200.0,67187.0,0.00559289]
[1773001167804,0.06101154,67197.0,67187.0,0.00559289]
[1773001169961,0.06101154,67195.0,67187.0,0.00559289]
[1773001170386,0.07440919,67196.0,67187.0,0.080012]
[1773001172193,0.06101154,67195.0,67184.0,0.00023]
[1773001172393,0.06101154,67193.0,67184.0,0.07465222]
[1773001172799,0.06101154,67193.0,67184.0,0.00023]
[1773001173852,0.26332079,67192.0,67180.0,0.0002]
[1773001174012,0.26332079,67192.0,67176.0,0.07443127]
[1773001174013,0.06101154,67189.0,67176.0,0.07591127]
[1773001174217,0.06101154,67185.0,67175.0,0.07443245]
[1773001174825,0.06101154,67185.0,67175.0,0.06943245]
[1773001175561,0.07442026,67186.0,67175.0,0.06982957]
[1773001177042,0.07442026,67186.0,67175.0,0.07002957]
[1773001182387,0.07442026,67186.0,67175.0,0.13462986]
[1773001185087,0.07441029,67195.0,67177.0,0.06460029]
[1773001185284,0.07441029,67195.0,67180.0,0.26931129]
[1773001185557,0.07441029,67195.0,67183.0,0.06460029]
[1773001185681,0.0746292,67196.0,67185.0,0.06460029]
[1773001185875,0.0746292,67196.0,67181.0,0.00148]
[1773001185876,0.07462933,67196.0,67187.0,0.06460029]
[1773001186184,0.07462933,67196.0,67182.0,0.06460029]
[1773001186413,0.13631144,67196.0,67182.0,0.06460029]
[1773001187004,0.13631144,67196.0,67183.0,0.06608029]
[1773001187206,0.13631144,67196.0,67184.0,0.07442248]
[1773001188134,0.07462933,67196.0,67184.0,0.07442248]
[1773001188293,0.06168211,67195.0,67183.0,0.07442248]
[1773001188866,0.06168211,67195.0,67183.0,0.07590248]
[1773001189052,0.06168211,67195.0,67184.0,0.001]
[1773001189255,0.06168211,67193.0,67183.0,0.07590248]
[1773001189437,0.06168211,67193.0,67183.0,0.07690248]
[1773001190033,0.06168211,67193.0,67182.0,0.01]
[1773001190034,0.06168211,67191.0,67182.0,0.01]
[1773001190249,0.26332079,67189.0,67175.0,0.07502903]
[1773001190419,0.06168211,67188.0,67175.0,0.07502903]
[1773001190818,0.06168211,67188.0,67183.0,0.01]
[1773001191021,0.06168211,67188.0,67175.0,0.07650903]
[1773001191221,0.07589915,67187.0,67175.0,0.07650903]
[1773001193742,0.07589915,67187.0,67175.0,0.08650903]
[1773001196407,0.06168211,67186.0,67175.0,0.08502937]
[1773001197834,0.06168211,67183.0,67175.0,0.0744324]
[1773001198425,0.07442469,67182.0,67175.0,0.0744324]
[1773001198999,0.07442469,67182.0,67175.0,0.0746916]
[1773001200226,0.07442469,67182.0,67175.0,0.0002592]
[1773001200476,0.06168211,67178.0,67162.0,0.07444658]
[1773001200800,0.06168211,67178.0,67162.0,0.07456569]
[1773001201163,0.06168211,67176.0,67162.0,0.00011911]
[1773001201362,0.06168211,67174.0,67162.0,0.00011911]
[1773001202467,0.06168211,67172.0,67162.0,0.00011911]
[1773001203570,0.07443466,67173.0,67162.0,0.00011911]
[1773001204531,0.07443466,67174.0,67162.0,0.00011911]
[1773001204745,0.00148,67173.0,67162.0,0.00011911]
[1773001205817,0.06544362,67184.0,67165.0,0.06399885]
[1773001206017,0.06544362,67184.0,67169.0,0.06399885]
[1773001206322,0.00148,67183.0,67169.0,0.06399885]
[1773001206537,0.06544362,67184.0,67169.0,0.06399885]
[1773001206699,0.0744258,67181.0,67170.0,0.13843684]
[1773001206878,0.0759058,67182.0,67172.0,0.06399885]
[1773001206879,0.00148,67182.0,67172.0,0.06399885]
[1773001207086,0.00148,67183.0,67173.0,0.06399885]
[1773001208031,0.00022001,67174.0,67173.0,0.06399885]
[1773001208703,0.00022001,67174.0,67173.0,0.13843351]
[1773001209433,0.00022001,67174.0,67173.0,0.07443466]
[1773001209805,0.07464589,67181.0,67173.0,0.07443466]
[1773001210000,0.00022001,67181.0,67173.0,0.07443466]
[1773001210487,0.07464582,67181.0,67173.0,0.07443466]
[1773001211115,0.00022001,67181.0,67173.0,0.07443466]
[1773001211710,0.00148,67180.0,67175.0,0.07443245]
[1773001212203,0.00022001,67181.0,67175.0,0.07443245]
[1773001213128,0.00148,67180.0,67175.0,0.07443245]
[1773001213563,0.00022001,67181.0,67175.0,0.07443245]
[1773001213788,0.00148,67180.0,67174.0,0.07443245]
[1773001215281,0.00022001,67181.0,67174.0,0.07443245]
[1773001215487,0.00148,67180.0,67174.0,0.07443245]
[1773001217383,0.00148,67179.0,67174.0,0.07443245]
[1773001218249,0.07112438,67183.0,67173.0,0.07443466]
[1773001218454,0.00148,67182.0,67173.0,0.07443466]
[1773001218788,0.07112438,67183.0,67173.0,0.07443466]
[1773001218990,0.00148,67182.0,67173.0,0.07443466]
[1773001219418,0.22245285,67186.0,67173.0,0.07443466]
[1773001219626,0.00022001,67188.0,67175.0,0.06595402]
[1773001219807,0.00148,67187.0,67178.0,0.2500397]
[1773001220011,0.00148,67187.0,67179.0,0.06595402]
[1773001220389,0.00148,67186.0,67174.0,0.06595402]
[1773001220966,0.00148,67186.0,67174.0,0.2500397]
[1773001221165,0.00148,67186.0,67175.0,0.2500397]
[1773001221379,0.00148,67186.0,67176.0,0.06595402]
[1773001222889,0.00148,67186.0,67177.0,0.07443023]
[1773001223872,0.00170001,67186.0,67177.0,0.07443023]
[1773001225235,0.00170001,67186.0,67176.0,0.07443023]
[1773001225444,0.06860573,67185.0,67176.0,0.07443023]
[1773001227578,0.06860573,67184.0,67175.0,0.07443023]
[1773001227778,0.06860573,67184.0,67174.0,0.08443286]
[1773001228040,0.06860573,67183.0,67174.0,0.08443286]
[1773001229397,0.24952445,67180.0,67163.0,0.07444575]
[1773001229643,0.07008573,67179.0,67163.0,0.07444575]
[1773001230211,0.06860573,67178.0,67163.0,0.07444575]
[1773001231271,0.06860573,67177.0,67163.0,0.07444575]
[1773001231400,0.06860573,67174.0,67163.0,0.07444575]
[1773001231598,0.06860573,67174.0,67167.0,0.0002]
[1773001231823,0.07008573,67173.0,67167.0,0.0002]
[1773001234031,0.00148,67173.0,67167.0,0.0002]
[1773001238217,0.06860573,67172.0,67167.0,0.0002]
[1773001238422,0.06860573,67172.0,67165.0,0.07444353]
[1773001238958,0.06860573,67172.0,67167.0,0.0002]
[1773001239728,0.22196779,67192.0,67169.0,0.24041201]
[1773001239842,0.07442272,67184.0,67170.0,0.30647921]
[1773001240042,0.00148,67183.0,67170.0,0.30647921]
[1773001240423,0.07442272,67184.0,67171.0,0.07443688]
[1773001240549,0.00148,67182.0,67171.0,0.07443688]
[1773001240765,0.00148,67181.0,67172.0,0.0660672]
[1773001240966,0.00137579,67181.0,67172.0,0.0660672]
[1773001241379,0.00148,67182.0,67173.0,0.24041201]
[1773001241581,0.00148,67182.0,67174.0,0.0660672]
[1773001242821,0.07590537,67182.0,67175.0,0.07443245]
[1773001243050,0.06619279,67181.0,67172.0,0.07443516]
[1773001243231,0.06619279,67179.0,67168.0,0.0744402]
[1773001243449,0.06619279,67178.0,67168.0,0.0744402]
[1773001244748,0.06619279,67178.0,67155.0,0.07465422]
[1773001244749,0.06619279,67176.0,67155.0,0.07465422]
[1773001244956,0.06619279,67169.0,67160.0,0.08043833]
[1773001245159,0.00148,67168.0,67160.0,0.08043833]
[1773001246319,0.07,67163.0,67160.0,0.08043833]
[1773001249199,0.0759211,67168.0,67160.0,0.08043833]
[1773001249806,0.07444168,67167.0,67160.0,0.08043833]
[1773001250006,0.07442843,67179.0,67161.0,0.00148]
[1773001250206,0.07475824,67177.0,67162.0,0.0660672]
[1773001250412,0.07475824,67177.0,67162.0,0.24041201]
[1773001250650,0.07475824,67177.0,67163.0,0.0660672]
[1773001251255,0.07,67171.0,67163.0,0.0660672]
[1773001251874,0.07,67171.0,67163.0,0.30647921]
[1773001252998,0.07,67171.0,67164.0,0.07444464]
[1773001255814,0.07443165,67176.0,67164.0,0.07444464]
[1773001256228,0.06619279,67175.0,67164.0,0.07444464]
[1773001256784,0.07443165,67176.0,67164.0,0.07444464]
[1773001256785,0.06619279,67173.0,67164.0,0.07444464]
[1773001257849,0.06619279,67173.0,67163.0,0.0002]
[1773001258904,0.06619279,67173.0,67164.0,0.01]
[1773001260149,0.06619279,67173.0,67165.0,0.07444353]
[1773001260333,0.00148,67174.0,67165.0,0.07444353]
[1773001262156,0.00022001,67173.0,67165.0,0.07444353]
[1773001265943,0.06368872,67171.0,67160.0,0.080439]
[1773001267298,0.23615838,67169.0,67157.0,0.1188249]
[1773001267495,0.06368872,67166.0,67155.0,0.07465459]